bitfinex-derivatives/quotes_ETHF0:USTF0_20251008
["timestamp","ask_amount","ask_price","bid_price","bid_amount"]
[1759937925669,1.17274,4455.8,4455.7,3.2078]
[1759937925869,1.17274,4455.8,4455.7,3.9814]
[1759937926461,1.17274,4455.8,4455.7,0.4517]
[1759937926663,1.17274,4455.8,4455.7,0.45363456]
[1759937927164,1.17274,4455.8,4455.7,0.00193456]
[1759937929467,0.83443,4454.8,4454.7,3.2078]
[1759937929673,1.17283,4454.8,4454.7,3.4254]
[1759937929862,1.17283,4454.8,4454.7,3.82934]
[1759937930063,0.7689,4454.8,4454.7,3.82934]
[1759937930470,0.7689,4454.8,4454.7,3.83114397]
[1759937930869,0.7689,4454.8,4454.7,4.38714397]
[1759937931075,0.5535,4454.8,4454.7,4.38714397]
[1759937931474,3.2078,4455.4,4454.9,1.00979]
[1759937931668,0.7689,4455.3,4455.2,0.8556]
[1759937931870,0.4305,4456.0,4455.9,0.40383]
[1759937932070,0.6565,4456.0,4455.9,0.72573]
[1759937932373,0.2154,4455.6,4455.5,0.1369]
[1759937932572,0.2154,4455.6,4455.5,0.3219]
[1759937932573,0.83437,4455.6,4455.5,0.3219]
[1759937932769,0.4305,4455.2,4455.1,0.7258]
[1759937933170,0.4305,4455.2,4455.1,0.9434]
[1759937933475,3.2078,4455.9,4455.1,0.7736]
[1759937933774,0.6565,4456.4,4456.3,0.5395]
[1759937934580,0.9949,4456.4,4456.3,0.3219]
[1759937935172,0.9949,4456.4,4456.0,0.54072]
[1759937935173,0.7798,4456.4,4456.0,0.54072]
[1759937935379,0.4305,4456.1,4456.0,1.08022]
[1759937935577,0.4305,4456.1,4456.0,1.31432]
[1759937936172,3.6383,4456.6,4456.5,0.62138]
[1759937936377,0.4305,4456.6,4456.5,1.31428]
[1759937936677,0.9949,4456.6,4456.5,0.5395]
[1759937937377,0.6565,4456.6,4456.5,0.6764]
[1759937937979,0.4305,4456.6,4456.5,0.9105]
[1759937938168,0.9949,4456.6,4456.5,0.5395]
[1759937938371,0.9949,4456.6,4456.5,0.3219]
[1759937938574,0.2154,4456.4,4456.3,1.17739]
[1759937938772,0.4305,4456.4,4456.3,1.17739]
[1759937939875,0.2151,4456.4,4456.3,1.17739]
[1759937940076,0.2151,4456.4,4456.2,3.2078]
[1759937940077,0.4305,4457.0,4456.9,1.17734]
[1759937940380,0.9949,4457.0,4456.9,0.3219]
[1759937941080,0.9949,4457.0,4456.9,0.5395]
[1759937941377,0.5538,4456.7,4456.1,0.3219]
[1759937941581,0.4305,4456.2,4456.1,1.17741]
[1759937942978,0.4305,4456.2,4456.1,0.7736]
[1759937943283,0.2151,4456.2,4456.1,0.7736]
[1759937946184,0.4305,4456.2,4456.1,0.7736]
[1759937946483,0.2151,4455.7,4455.6,0.7736]
[1759937948482,0.3384,4456.2,4455.6,0.7736]
[1759937948681,4.05067,4456.6,4456.5,0.8819]
[1759937948880,4.60337,4456.6,4456.5,0.5309]
[1759937949587,4.60337,4456.6,4456.0,0.8819]
[1759937949588,0.84291,4456.1,4456.0,0.8819]
[1759937950183,0.84291,4456.1,4456.0,1.28572]
[1759937950681,0.84289,4456.5,4456.4,0.61808]
[1759937950883,0.84289,4456.5,4456.4,0.7496]
[1759937951082,0.84289,4456.5,4456.4,1.15339]
[1759937951281,0.4391,4456.5,4456.4,1.15339]
[1759937951580,3.4338,4456.6,4456.5,0.53608]
[1759937951783,4.60337,4456.6,4456.5,0.3166]
[1759937951981,0.2271,4456.1,4456.0,0.75042]
[1759937952180,0.4038,4456.3,4456.2,0.4038]
[1759937952382,0.63089,4456.4,4456.3,0.83679]
[1759937952582,0.40379,4456.5,4456.4,0.433]
[1759937952782,0.63089,4456.5,4456.4,0.7496]
[1759937953688,0.40379,4456.5,4456.4,0.7496]
[1759937953887,0.63089,4456.5,4456.4,0.7496]
[1759937954084,0.84289,4456.5,4456.4,0.7496]
[1759937954386,0.40386,4455.6,4455.1,3.2078]
[1759937954593,0.63096,4455.6,4455.5,0.6678]
[1759937954888,0.63096,4455.6,4455.5,0.8865]
[1759937955082,1.16966,4455.6,4455.5,0.5309]
[1759937955284,0.631,4455.2,4455.1,0.7496]
[1759937955485,0.843,4455.2,4455.1,0.7496]
[1759937956387,0.4391,4455.2,4455.1,0.7496]
[1759937958393,0.4391,4455.2,4455.1,0.5435]
[1759937958588,0.4391,4455.2,4455.1,0.7585]
[1759937958783,3.5274,4455.5,4455.4,0.63078]
[1759937958784,3.2078,4455.5,4455.4,0.63078]
[1759937958991,2.59343158,4455.7,4455.6,0.7715]
[1759937959290,2.68703158,4455.7,4455.6,0.7715]
[1759937959489,2.91303158,4455.7,4455.6,0.7715]
[1759937959689,0.445,4455.7,4455.6,0.7715]
[1759937959889,0.6663,4455.7,4455.6,0.7715]
[1759937960186,0.40391,4455.1,4455.0,0.3574]
[1759937960385,0.84421,4455.1,4455.0,0.3574]
[1759937960586,0.84421,4455.1,4455.0,0.5724]
[1759937960788,0.4403,4455.1,4455.0,0.902]
[1759937961991,1.74928158,4455.7,4455.0,0.902]
[1759937961992,1.38975,4455.7,4455.6,0.7715]
[1759937962196,1.38975,4455.7,4455.6,0.5565]
[1759937962487,1.07015,4455.7,4455.6,0.7715]
[1759937962692,1.38975,4455.7,4455.6,0.7715]
[1759937963390,0.4403,4455.7,4455.6,1.17536]
[1759937963693,0.3196,4456.2,4456.0,1.30582]
[1759937963694,0.226,4456.2,4456.0,1.30582]
[1759937963895,0.84881,4456.2,4456.1,0.7715]
[1759937964093,1.07011,4456.2,4456.1,0.7715]
[1759937964495,1.07011,4456.2,4456.1,1.17531]
[1759937964692,0.40381,4456.1,4456.0,0.1305]
[1759937964892,0.84416,4455.6,4455.5,0.3574]
[1759937965289,0.84416,4455.6,4455.5,0.687]
[1759937965486,0.84416,4455.6,4455.1,0.5565]
[1759937965487,0.84421,4455.2,4455.1,0.5565]
[1759937965692,0.219,4455.2,4455.1,0.7715]
[1759937965997,0.6229,4455.2,4455.1,1.17541]
[1759937967400,0.8442,4455.2,4455.1,1.17541]
[1759937967697,0.8442,4455.2,4455.1,0.5565]
[1759937968185,0.4403,4455.2,4455.1,0.7715]
[1759937968392,0.8442,4455.2,4455.1,1.17541]
[1759937968792,0.8442,4455.2,4455.1,0.5565]
[1759937969096,0.8442,4455.2,4455.1,1.17541]
[1759937971098,0.40389,4455.3,4455.2,0.4039]
[1759937971303,0.445,4455.5,4455.4,0.7715]
[1759937971500,0.62288,4455.5,4455.4,1.17538]
[1759937971699,0.84418,4455.5,4455.4,0.7715]
[1759937971902,0.62291,4455.1,4455.0,0.687]
[1759937972197,0.219,4455.4,4455.3,0.4419]
[1759937972508,0.219,4455.4,4455.3,0.7715]
[1759937972892,0.226,4455.6,4455.3,0.4419]
[1759937973099,4.05191,4456.2,4456.1,0.2269]
[1759937973404,0.4403,4456.2,4456.1,1.17531]
[1759937973598,0.6663,4456.2,4456.1,1.17531]
[1759937973800,1.07011,4456.2,4456.1,0.7715]
[1759937974004,1.07011,4456.2,4456.1,1.17531]
[1759937974394,0.219,4456.6,4456.5,0.3574]
[1759937974596,0.62976,4456.7,4456.6,0.3296]
[1759937974798,0.62276,4456.7,4456.6,0.7715]
[1759937975200,0.219,4456.7,4456.6,0.7715]
[1759937976203,0.4403,4456.7,4456.6,0.7715]
[1759937976507,0.8441,4456.3,4456.2,0.2269]
[1759937976808,0.62285,4455.7,4455.6,3.6497]
[1759937977007,0.40385,4455.7,4455.6,3.9793]
[1759937977809,0.62285,4455.7,4455.6,0.7715]
[1759937978501,0.84415,4455.7,4455.6,0.7715]
[1759937979804,0.2297,4456.1,4456.0,0.3514]
[1759937980005,1.18521,4456.1,4456.0,0.661]
[1759937980201,0.0829,4456.0,4455.1,3.2078]
[1759937980405,0.0829,4456.0,4454.2,4.99683349]
[1759937980406,0.2297,4454.8,4454.7,0.00180397]
[1759937980602,0.40392,4454.9,4454.7,0.44430397]
[1759937981103,0.2297,4455.1,4455.0,0.3514]
[1759937981309,0.63361,4455.1,4455.0,0.8826]
[1759937981507,0.40387,4455.5,4455.3,0.40388]
[1759937981714,0.84486,4455.6,4455.5,0.8826]
[1759937982210,1.16516,4455.6,4455.5,0.5305]
[1759937984313,0.6242,4455.2,4455.1,3.9732]
[1759937986417,0.6242,4455.2,4455.1,0.7654]
[1759937986712,0.2203,4455.2,4455.1,0.7654]
[1759937986911,0.2203,4455.4,4455.3,0.7654]
[1759937987217,40.01183349,4457.1,4456.0,0.6799]
[1759937987218,0.83191,4456.1,4456.0,0.6799]
[1759937987410,0.40385,4455.7,4455.6,0.3217]
[1759937987609,0.83195,4455.7,4455.6,1.16926]
[1759937987809,0.83199,4455.3,4455.2,0.2228]
[1759937988115,0.83199,4455.3,4455.2,0.7654]
[1759937989513,0.40391,4455.1,4455.0,0.1305]
[1759937990204,0.83203,4454.8,4454.7,3.43240397]
[1759937990519,0.83203,4454.8,4454.7,3.65330397]
[1759937990814,0.83203,4454.8,4454.7,3.97500397]
[1759937991316,0.83203,4454.8,4454.7,0.76720397]
[1759937993117,0.62423,4454.8,4454.7,0.76720397]
[1759937993611,0.40392,4455.0,4454.9,0.7654]
[1759937993915,0.62422,4455.0,4454.9,0.7654]
[1759937994117,0.2203,4455.0,4454.9,0.7654]
[1759937994710,0.83201,4455.1,4455.0,0.9027]
[1759937995617,0.40391,4455.1,4455.0,0.9027]
[1759937995914,0.62421,4455.1,4455.0,0.9027]
[1759937996814,0.2203,4455.1,4455.0,1.30661]
[1759937997012,0.4281,4455.5,4455.4,0.2228]
[1759937997316,0.4281,4455.5,4455.4,0.7654]
[1759937997317,0.83197,4455.5,4455.4,0.7654]
[1759937997911,1.15227,4455.5,4455.4,0.7654]
[1759937998113,1.15227,4455.5,4455.4,0.3217]
[1759937998323,1.15227,4455.5,4455.4,0.5445]
[1759937999923,2.3750431,4455.5,4455.4,0.5445]
[1759938000515,1.15231,4455.1,4455.0,0.5445]
[1759938000722,2.0547831,4455.1,4455.0,0.9027]
[1759938002221,0.4281,4455.1,4455.0,0.9027]
[1759938002420,0.226,4455.2,4455.0,0.581]
[1759938002623,0.8502,4455.2,4455.1,0.7654]
[1759938003325,0.83196,4455.6,4455.5,0.9027]
[1759938003526,1.37826,4455.6,4455.5,0.9027]
[1759938003721,1.37826,4455.6,4455.5,0.3217]
[1759938003927,1.15231,4455.1,4455.0,0.9027]
[1759938004127,2.3750831,4455.1,4455.0,0.9027]
[1759938004929,2.3750831,4455.1,4455.0,1.30661]
[1759938005128,0.83201,4455.1,4455.0,1.30661]
[1759938005527,0.83201,4455.1,4455.0,0.9027]
[1759938006130,0.4281,4455.1,4455.0,1.30661]
[1759938006537,0.83201,4455.1,4455.0,0.9027]
[1759938007022,1.15231,4455.1,4455.0,0.9027]
[1759938007633,0.83201,4455.1,4455.0,1.30661]
[1759938008430,0.83201,4455.1,4455.0,0.9027]
[1759938008732,0.83201,4455.1,4455.0,1.30661]
[1759938009235,0.4531,4455.6,4455.5,1.30697]
[1759938009536,1.08296,4455.6,4455.5,1.30697]
[1759938009834,1.39336,4455.6,4455.5,0.9031]
[1759938010041,0.6791,4455.6,4455.5,1.30697]
[1759938010333,1.08296,4455.6,4455.5,0.9031]
[1759938010831,0.40385,4455.8,4455.7,0.62945]
[1759938011038,0.40385,4455.8,4455.7,1.18315]
[1759938011039,0.62985,4455.8,4455.7,1.18315]
[1759938011228,0.85445,4455.8,4455.7,1.18315]
[1759938011428,2.0772231,4455.8,4455.7,1.18315]
[1759938011934,2.3057231,4455.8,4455.7,0.7793]
[1759938012339,2.3057231,4455.8,4455.3,0.5533]
[1759938012340,1.16738,4455.4,4455.3,0.5533]
[1759938012630,1.6758731,4455.4,4455.3,1.18319]
[1759938012830,1.4473731,4455.7,4455.6,0.7793]
[1759938013036,0.226,4455.8,4455.7,1.18315]
[1759938013537,1.4473731,4456.1,4456.0,1.30692]
[1759938013838,3.83613,4457.0,4456.9,0.7793]
[1759938014025,3.9713,4457.0,4456.9,0.7793]
[1759938014225,3.9713,4457.0,4456.9,0.5533]
[1759938014637,3.6609,4457.0,4456.9,0.7793]
[1759938014825,3.2078,4457.0,4456.9,0.7793]
[1759938015032,0.3104,4457.4,4457.3,1.183]
[1759938015033,0.2246,4457.4,4457.3,1.183]
[1759938015335,0.00234572,4457.9,4457.8,0.5537]
[1759938015537,0.00234572,4457.9,4457.8,0.7793]
[1759938015834,0.11476,4458.7,4458.6,0.7793]
[1759938016040,0.11476,4458.7,4458.6,3.9871]
[1759938016534,0.11476,4458.7,4458.0,0.1238]
[1759938016535,2.3270331,4458.7,4458.0,0.1238]
[1759938016736,1.4473731,4458.2,4458.1,0.7793]
[1759938016938,0.40361,4458.4,4458.1,0.7793]
[1759938017238,0.62822,4458.3,4458.2,0.7793]
[1759938017430,1.6263731,4458.5,4458.2,1.18292]
[1759938017632,0.11736809,4458.7,4458.4,0.7793]
[1759938017935,0.11736809,4458.7,4458.6,0.7793]
[1759938018333,0.34196809,4458.7,4458.6,0.7793]
[1759938018534,0.57046809,4458.7,4458.6,0.7793]
[1759938019642,0.34196809,4458.7,4458.6,0.7793]
[1759938020029,1.43674809,4458.7,4458.0,0.12635559]
[1759938020240,0.85672,4458.2,4458.1,0.5533]
[1759938020935,0.85672,4458.2,4458.1,0.7793]
[1759938021730,0.40359,4458.6,4458.3,0.4516]
[1759938021936,0.62819,4458.6,4458.5,0.9031]
[1759938022638,1.34014119,4458.7,4458.6,0.7793]
[1759938022639,0.11736809,4458.7,4458.6,0.7793]
[1759938024535,0.34196809,4458.7,4458.6,0.7793]
[1759938024833,0.11736809,4458.7,4458.6,0.7793]
[1759938027142,4.42152867,4460.0,4459.5,0.9031]
[1759938027143,3.2078,4459.6,4459.5,0.9031]
[1759938027344,3.6609,4459.6,4459.5,0.9031]
[1759938027642,3.6609,4459.6,4459.1,1.0053]
[1759938027643,0.62813,4459.2,4459.1,1.0053]
[1759938027837,0.62813,4459.2,4459.1,0.7793]
[1759938028043,0.85879819,4459.2,4459.1,0.7793]
[1759938029842,1.16919819,4459.2,4459.1,0.7793]
[1759938030042,0.85879819,4459.2,4459.1,0.7793]
[1759938031346,1.16919819,4459.2,4459.1,0.5533]
[1759938031641,0.40358,4458.8,4458.7,0.4516]
[1759938031840,0.62818,4458.8,4458.7,0.4516]
[1759938032037,0.85668,4458.8,4458.7,0.7793]
[1759938032644,0.85668,4458.8,4458.7,1.18288]
[1759938032949,0.62818,4458.8,4458.7,1.18288]
[1759938033237,0.62818,4458.8,4458.6,0.226]
[1759938033238,0.62816,4459.0,4458.9,0.85516]
[1759938033444,0.00216819,4459.2,4459.0,0.5754]
[1759938033646,0.40569819,4459.2,4459.1,1.18284]
[1759938033838,0.00216819,4459.2,4459.1,1.18284]
[1759938039148,0.4451,4460.6,4460.5,0.9041]
[1759938039452,0.2197,4461.0,4460.9,0.7727]
[1759938039649,0.62307,4461.0,4460.9,0.7727]
[1759938039850,0.84851,4460.6,4460.5,0.9041]
[1759938040148,0.85129793,4460.6,4460.5,0.9041]
[1759938040746,0.62315,4460.1,4460.0,0.6972]
[1759938041044,1.18865,4460.1,4460.0,0.6972]
[1759938041246,1.18865,4460.1,4459.6,0.3373]
[1759938041247,3.993,4460.1,4459.6,0.3373]
[1759938041547,1.18869,4459.7,4459.6,0.3373]
[1759938041942,0.40354,4459.1,4459.0,0.8945]
[1759938043049,4.38174,4459.1,4459.0,0.5523]
[1759938043255,4.04164,4459.1,4459.0,0.6778]
[1759938043853,4.04164,4459.1,4459.0,0.8886]
[1759938044151,4.38174,4459.1,4459.0,0.6778]
[1759938044343,0.4303,4458.5,4458.4,0.7631]
[1759938046448,0.4303,4458.5,4458.0,0.13395559]
[1759938046449,0.40363,4458.1,4458.0,0.34375559]
[1759938046650,4.04173,4458.1,4458.0,0.55455559]
[1759938046951,4.38183,4458.1,4458.0,0.34375559]
[1759938047152,4.38183,4458.1,4458.0,0.68625559]
[1759938048250,4.38183,4458.1,4458.0,0.00255559]
[1759938049249,4.04173,4458.1,4458.0,0.76565559]
[1759938049450,3.2078,4458.1,4458.0,0.89115559]
[1759938050154,3.6381,4458.1,4458.0,0.68035559]
[1759938050457,3.6381,4458.1,4458.0,0.89115559]
[1759938052762,3.4182,4458.1,4458.0,0.89115559]
[1759938053149,3.6381,4458.1,4458.0,0.89115559]
[1759938053556,3.9782,4458.1,4458.0,0.55485559]
[1759938054157,3.6381,4458.1,4458.0,0.89115559]
[1759938054357,3.2078,4458.1,4458.0,0.89115559]
[1759938055059,3.4182,4458.1,4458.0,0.89115559]
[1759938055251,3.6381,4458.1,4458.0,0.89115559]
[1759938057661,3.4182,4458.1,4458.0,0.89115559]
[1759938058061,3.82183,4458.1,4458.0,0.89115559]
[1759938058661,0.61403,4458.1,4458.0,0.89115559]
[1759938059361,0.83393,4458.1,4458.0,0.89115559]
[1759938060361,1.17403,4458.1,4458.0,0.55485559]
[1759938060560,0.225,4458.2,4458.1,0.3425]
[1759938060561,0.40363,4458.2,4458.1,0.3425]
[1759938060863,3.82174,4459.1,4459.0,0.8886]
[1759938061064,4.04674,4459.1,4459.0,0.8886]
[1759938061367,0.83894,4459.1,4459.0,0.8886]
[1759938061566,0.83389,4458.6,4458.5,0.8886]
[1759938062158,0.40359,4458.6,4458.5,0.8886]
[1759938063863,0.40358,4458.7,4458.6,0.7631]
[1759938066162,0.61398,4458.7,4458.6,0.7631]
[1759938066669,0.40358,4458.7,4458.6,0.7631]
[1759938068069,0.61398,4458.7,4458.6,0.7631]
[1759938068265,0.225,4459.0,4458.6,0.7631]
[1759938068468,3.2078,4459.6,4459.5,1.30301]
[1759938068769,3.6113,4459.6,4459.5,0.8995]
[1759938068972,4.046,4459.6,4459.5,0.8995]
[1759938069171,1.17596,4458.9,4458.8,0.2204]
[1759938070768,0.1247,4459.0,4458.2,3.2078]
[1759938070769,0.95472,4458.3,4458.2,0.4288]
[1759938071074,1.17602,4458.3,4458.2,0.4288]
[1759938071274,1.17602,4458.3,4458.2,0.7663]
[1759938071575,4.21679,4458.6,4458.2,0.4288]
[1759938071576,3.2078,4458.6,4458.2,0.4288]
[1759938071768,0.40359,4458.7,4458.6,0.3375]
[1759938071963,3.2078,4459.3,4458.7,0.4288]
[1759938072163,3.2078,4459.3,4459.0,0.1332]
[1759938072370,3.2078,4459.3,4459.2,0.7663]
[1759938072578,3.61133,4459.3,4459.2,0.7663]
[1759938072772,3.82473,4459.3,4459.2,0.7663]
[1759938073268,3.2078,4459.3,4459.2,0.7663]
[1759938073469,0.225,4460.0,4459.3,0.3375]
[1759938073664,1.40086,4460.0,4459.9,0.2204]
[1759938073872,1.17589,4459.7,4459.6,0.2204]
[1759938074172,1.17593,4459.3,4459.2,0.5579]
[1759938074374,1.17593,4459.3,4459.2,0.2204]
[1759938074771,0.3377,4459.2,4458.5,0.4707]
[1759938074969,0.40359,4458.7,4458.6,0.7663]
[1759938075276,0.40356,4458.9,4458.6,1.16989]
[1759938075574,0.3377,4458.1,4458.0,0.00255559]
[1759938076181,0.3377,4458.1,4458.0,0.34005559]
[1759938076367,3.2078,4458.3,4458.1,0.40363]
[1759938076564,3.2078,4458.8,4458.2,0.74112]
[1759938076765,0.3377,4458.5,4458.3,0.3375]
[1759938076968,0.40362,4458.3,4458.2,0.3375]
[1759938077377,0.3377,4458.5,4458.3,0.3375]
[1759938078074,0.3377,4458.5,4458.3,0.40361]
[1759938078279,0.3377,4458.5,4458.1,3.2078]
[1759938078280,0.225,4459.0,4458.7,0.40357]
[1759938078577,0.40357,4458.8,4458.7,0.40358]
[1759938078876,0.62856,4459.0,4458.7,0.40358]
[1759938079077,0.62856,4459.0,4458.8,0.3375]
[1759938079678,0.40357,4458.9,4458.8,0.3375]
[1759938080375,0.40357,4458.9,4458.5,0.1332]
[1759938080376,0.225,4459.2,4458.6,0.3375]
[1759938080979,0.225,4459.3,4459.2,0.3375]
[1759938081577,0.4384,4459.3,4459.2,0.7663]
[1759938082080,0.40352,4459.4,4459.3,0.3375]
[1759938082381,1.40091,4459.6,4459.5,0.5579]
[1759938082676,1.40091,4459.6,4459.0,0.1332]
[1759938082874,0.95464,4459.1,4459.0,0.7663]
[1759938083274,0.61694,4459.1,4459.0,0.7663]
[1759938083774,0.95464,4459.1,4459.0,0.7663]
[1759938084481,1.17594,4459.1,4459.0,0.7663]
[1759938086383,0.7724,4459.1,4459.0,1.16985]
[1759938086580,1.17594,4459.1,4459.0,0.7663]
[1759938086978,1.17594,4459.1,4459.0,1.16985]
[1759938087687,0.7724,4459.1,4459.0,1.16985]
[1759938087982,0.61694,4459.2,4459.1,1.16983]
[1759938088176,0.95464,4459.2,4459.1,0.7663]
[1759938088480,1.17594,4459.2,4458.8,0.40356]
[1759938088784,0.95466,4458.9,4458.8,0.7663]
[1759938090084,1.17596,4458.9,4458.8,0.7663]
[1759938090877,1.17596,4458.9,4458.2,3.2078]
[1759938090878,0.8971,4458.5,4458.2,3.2078]
[1759938091082,1.17602,4458.3,4458.2,3.7657]
[1759938091385,1.17602,4458.3,4458.0,0.53939559]
[1759938091386,0.40363,4458.1,4458.0,0.00255559]
[1759938091582,1.17603,4458.1,4458.0,0.00255559]
[1759938091884,1.17603,4458.1,4455.6,4.99125998]
[1759938091885,0.2134,4456.7,4456.6,3.7657]
[1759938092087,3.2078,4457.3,4456.6,3.2078]
[1759938092391,0.6171,4457.4,4457.3,0.7663]
[1759938092890,0.225,4457.8,4457.6,1.16997]
[1759938093081,0.44087914,4457.8,4457.7,0.7663]
[1759938093778,0.66217914,4457.8,4457.7,0.5579]
[1759938094082,0.6171,4457.4,4457.3,0.76902698]
[1759938094488,0.2134,4457.4,4457.3,1.17273698]
[1759938094683,0.00247914,4457.8,4457.7,1.16997]
[1759938094889,0.21587914,4457.8,4457.7,0.7663]
[1759938095682,1.1761,4457.4,4457.3,0.56062698]
[1759938096189,0.8384,4457.4,4457.3,0.76902698]
[1759938096583,0.4347,4457.4,4457.3,0.76902698]
[1759938096889,0.4347,4457.4,4457.3,1.17273698]
[1759938097087,0.2134,4457.4,4457.3,1.17273698]
[1759938099485,0.2134,4457.4,4457.3,0.76902698]
[1759938099687,0.40371,4457.3,4456.8,0.3268]
[1759938099990,0.82864,4456.9,4456.8,0.5459]
[1759938100384,1.15174,4456.9,4456.8,0.3268]
[1759938100586,1.15177,4456.6,4456.5,0.5459]
[1759938100780,0.82867,4456.6,4456.5,0.54833361]
[1759938100988,0.82867,4456.6,4456.5,0.89923361]
[1759938101291,1.15177,4456.6,4456.5,0.76383361]
[1759938101687,1.15177,4456.6,4456.5,0.54833361]
[1759938102089,0.82867,4456.6,4456.5,0.89923361]
[1759938102291,0.4249,4456.6,4456.5,0.89923361]
[1759938103088,0.7533,4456.6,4456.5,0.00243361]
[1759938103292,0.4249,4456.6,4456.5,0.88883361]
[1759938103789,0.7533,4456.6,4456.5,0.88883361]
[1759938104294,0.4249,4456.6,4456.5,0.88883361]
[1759938105690,0.62176,4456.7,4456.6,0.3292]
[1759938105892,0.83136,4456.7,4456.6,0.751]
[1759938106096,1.15976,4456.7,4456.6,0.751]
[1759938106997,2.68254637,4456.7,4456.6,0.751]
[1759938113597,0.218,4456.7,4456.6,1.15477]
[1759938113801,0.62168,4457.6,4457.5,0.8864]
[1759938114096,0.756,4457.2,4457.1,3.537]
[1759938114295,1.85118637,4457.2,4456.7,0.3292]
[1759938114602,2.68253637,4456.8,4456.7,0.5385]
[1759938115102,1.15977,4456.6,4456.5,0.00243361]
[1759938115801,0.756,4456.6,4456.5,0.54093361]
[1759938116002,1.15977,4456.6,4456.5,0.75343361]
[1759938117406,1.15977,4456.6,4456.5,0.54093361]
[1759938118499,0.218,4456.8,4456.7,0.82556]
[1759938118705,0.218,4456.8,4456.7,1.15476]
[1759938119005,0.4276,4456.8,4456.7,0.751]
[1759938119199,0.756,4456.8,4456.7,0.751]
[1759938120304,0.4276,4456.8,4456.7,0.751]
[1759938120905,0.40374,4456.9,4456.7,1.15475]
[1759938121204,0.40374,4456.9,4456.8,0.751]
[1759938121409,0.62174,4456.9,4456.8,0.751]
[1759938122303,1.15974,4456.9,4456.8,0.5385]
[1759938123103,1.15974,4456.9,4456.8,0.751]
[1759938123403,0.3284,4457.1,4457.0,0.1354]
[1759938123707,0.62177,4456.6,4456.5,3.99243361]
[1759938123907,0.62177,4456.6,4456.5,4.72541361]
[1759938124107,0.62177,4456.6,4456.5,4.32163361]
[1759938124408,1.15977,4456.6,4456.5,4.32163361]
[1759938124708,1.15977,4456.6,4456.5,3.74873361]
[1759938125405,1.15977,4456.6,4456.5,3.96123361]
[1759938125608,4.42973989,4457.3,4457.2,0.4218]
[1759938125806,1.62564989,4457.3,4457.2,0.751]
[1759938126114,0.62177,4456.6,4456.5,0.42423361]
[1759938126309,0.95017,4456.6,4456.5,0.42423361]
[1759938126906,0.95017,4456.6,4456.5,0.82801361]
[1759938127204,1.97793989,4456.6,4456.0,3.2078]
[1759938127407,0.95029,4455.3,4455.2,0.4218]
[1759938127603,0.3284,4455.3,4455.2,0.6468]
[1759938127809,1.67573989,4455.5,4455.4,0.4218]
[1759938128123,1.67573989,4455.5,4455.4,0.7036]
[1759938128412,0.4538,4455.5,4455.4,0.95912792]
[1759938128804,0.3284,4455.5,4455.4,0.95912792]
[1759938129409,1.55563989,4455.8,4455.7,0.40385]
[1759938129609,1.22193989,4456.7,4456.2,0.7195]
[1759938129815,0.40377,4456.6,4456.2,0.7195]
[1759938130014,3.7597,4456.3,4456.2,0.7195]
[1759938130412,3.2078,4456.3,4456.2,1.12331]
[1759938130811,3.2078,4456.3,4456.2,0.7195]
[1759938131011,3.5415,4456.3,4456.2,0.7195]
[1759938131517,0.3337,4456.7,4456.6,0.4376]
[1759938131709,0.40372,4457.2,4456.8,0.4376]
[1759938131907,3.2078,4457.4,4457.1,0.7195]
[1759938132113,0.3337,4457.4,4457.3,0.7195]
[1759938132617,0.5519,4457.4,4457.3,0.4376]
[1759938132815,0.7595,4457.4,4457.3,0.2161]
[1759938133116,1.29343,4457.0,4456.9,0.4411]
[1759938133316,1.29343,4457.0,4456.9,0.6626]
[1759938133512,1.29343,4457.0,4456.9,0.4376]
[1759938134019,0.68094496,4457.0,4456.9,0.7206]
[1759938134215,0.55074496,4457.0,4456.9,0.7206]
[1759938136617,0.68094496,4457.0,4456.9,0.7206]
[1759938136918,1.22193989,4457.2,4456.8,0.62875]
[1759938136919,0.40371,4457.3,4457.2,0.4376]
[1759938137221,1.75582989,4457.5,4457.2,0.7206]
[1759938137419,1.16321,4457.3,4457.2,0.4376]
[1759938137628,0.3337,4457.3,4457.2,0.7206]
[1759938137827,0.00247914,4457.8,4457.7,0.7206]
[1759938138617,0.55437914,4457.8,4457.7,0.4376]
[1759938138922,1.98391903,4457.8,4457.3,41.083]
[1759938139120,0.40375,4456.9,4456.6,3.2078]
[1759938139316,0.6821,4457.0,4456.9,0.4376]
[1759938140528,0.8897,4457.0,4456.9,0.4376]
[1759938140724,0.8897,4457.0,4456.9,0.2161]
[1759938140929,0.8897,4457.0,4456.9,0.4411]
[1759938141320,0.8897,4457.0,4456.9,0.6626]
[1759938143131,1.16326,4456.7,4456.6,0.2161]
[1759938143331,2.38519989,4456.7,4456.6,0.2161]
[1759938143528,2.38519989,4456.7,4456.5,0.225]
[1759938143529,0.7595,4456.2,4455.7,0.40385]
[1759938143832,0.62204,4455.9,4455.8,0.6626]
[1759938144230,0.95574,4455.9,4455.8,0.6626]
[1759938144730,1.7691,4455.9,4455.4,0.25552792]
[1759938144933,0.8897,4455.5,4455.4,0.47162792]
[1759938145632,0.8897,4455.5,4455.4,0.69312792]
[1759938145835,0.3337,4455.5,4455.4,0.97612792]
[1759938146336,0.6821,4455.5,4455.4,0.69312792]
[1759938148339,0.40382,4456.0,4455.8,0.7206]
[1759938148530,0.3337,4455.9,4455.8,0.7206]
[1759938148731,0.5519,4455.9,4455.8,0.7206]
[1759938148924,0.7595,4455.9,4455.8,0.4376]
[1759938150429,0.7595,4455.9,4455.8,0.2161]